[Event "Slovakia Open Piestany-A 2022"]
[Site "Piestany"]
[Date "2022.07.13"]
[Round "3.28"]
[White "Drtina, Milan"]
[Black "Saravanan Durga"]
[Result "1-0"]
[ECO "B30"]
[WhiteElo "2167"]
[BlackElo "1908"]
[Annotator "ChessBase"]
[PlyCount "168"]
[EventDate "2022.07.12"]
[EventType "swiss"]
[EventCountry "SVK"]
[SourceTitle "playchess.com"]
[Source "ChessBase"]
[SourceQuality "1"]
[TimeControl "40/5400+30:1800+30"]

1. e4 {[%emt 0:00:15]} c5 {[%emt 0:00:05]} 2. c4 {[%emt 0:00:16]} Nc6 {[%emt 0:00:25]} 3. Nf3 {[%emt 0:00:12]} e5 {[%emt 0:00:12]} 4. Nc3 {[%emt 0:00:48]} Nge7 {[%emt 0:00:20]} 5. d3 {[%emt 0:00:21]} d6 {[%emt 0:01:56]} 6. g3 {[%emt 0:02:52]} g6 {[%emt 0:00:24]} 7. Bg2 {[%emt 0:00:13]} Bg7 {[%emt 0:00:05]} 8. Be3 {[%emt 0:03:07]} O-O {[%emt 0:06:46]} 9. Qd2 {[%emt 0:02:56]} Nd4 {[%emt 0:06:10]} 10. h4 {[%emt 0:03:02]} Bg4 {[%emt 0:02:26]} 11. Nh2 {[%emt 0:01:17]} Qd7 {[%emt 0:14:56]} 12. f3 {[%emt 0:10:43]} Bh3 {[%emt 0:03:25]} 13. g4 {[%emt 0:01:11]} Bxg2 {[%emt 0:00:37]} 14. Qxg2 {[%emt 0:00:13]} a6 {[%emt 0:16:02]} 15. h5 {[%emt 0:00:56]} b5 {[%emt 0:01:03]} 16. b3 {[%emt 0:04:47]} Nec6 {[%emt 0:26:43]} 17. Nd5 {[%emt 0:02:31]} Nb4 {[%emt 0:00:54]} 18. Nxb4 {[%emt 0:28:00]} cxb4 {[%emt 0:00:01]} 19. Bxd4 {[%emt 0:00:36]} exd4 {[%emt 0:00:05]} 20. Nf1 {[%emt 0:10:08]} Be5 {[%emt 0:09:37]} 21. Qd2 {[%emt 0:01:24]} bxc4 {[%emt 0:01:04]} 22. bxc4 {[%emt 0:00:10]} a5 {[%emt 0:01:14]} 23. f4 {[%emt 0:00:15]} Bh8 {[%emt 0:02:03]} 24. Qg2 {[%emt 0:03:22]} a4 {[%emt 0:00:29]} 25. Nd2 {[%emt 0:00:27]} Rfb8 {[%emt 0:00:59]} 26. Ke2 {[%emt 0:01:14]} Qe7 {[%emt 0:04:28]} 27. g5 {[%emt 0:03:38]} Qe6 {[%emt 0:00:47]} 28. Qh2 {[%emt 0:02:14]} Qe7 {[%emt 0:00:33]} 29. hxg6 {[%emt 0:01:31]} fxg6 {[%emt 0:00:03]} 30. f5 {[%emt 0:00:32]} gxf5 {[%emt 0:00:39]} 31. g6 {[%emt 0:00:18]} Be5 {[%emt 0:00:41]} 32. Qxh7+ {[%emt 0:04:44]} Qxh7 {[%emt 0:00:01]} 33. gxh7+ {[%emt 0:00:18]} Kh8 {[%emt 0:00:08]} 34. exf5 {[%emt 0:00:13]} Ra7 {[%emt 0:00:28]} 35. Kf3 {[%emt 0:00:29]} Rxh7 {[%emt 0:00:58]} 36. Ke4 {[%emt 0:00:16]} Rxh1 {[%emt 0:01:02]} 37. Rxh1+ {[%emt 0:00:14]} Kg7 {[%emt 0:00:02]} 38. Nf3 {[%emt 0:00:40]} b3 {[%emt 0:00:41]} 39. axb3 {[%emt 0:00:11]} Rxb3 {[%emt 0:00:24]} 40. Nxd4 {[%emt 0:01:35]} Bxd4 {[%emt 0:00:25]} 41. Kxd4 {[%emt 0:30:18]} a3 {[%emt 0:02:23]} 42. Ra1 {[%emt 0:00:00]} Kf6 {[%emt 0:00:10]} 43. Ke4 {[%emt 0:00:00]} Rc3 {[%emt 0:03:23]} 44. Ra2 {[%emt 0:00:00]} Rb3 {[%emt 0:18:46]} 45. Ra1 {[%emt 0:00:00]} Rc3 {[%emt 0:00:42]} 46. Ke3 {[%emt 0:00:00]} Kxf5 {[%emt 0:01:59]} 47. Kd2 {[%emt 0:00:00]} Rb3 {[%emt 0:00:05]} 48. Kc2 {[%emt 0:00:00]} Rb6 {[%emt 0:03:15]} 49. Rxa3 {[%emt 0:00:00]} Ke6 {[%emt 0:01:00]} 50. Ra7 {[%emt 0:00:00]} Rc6 {[%emt 0:01:45]} 51. Kc3 {[%emt 0:00:00]} Rb6 {[%emt 0:01:05]} 52. d4 {[%emt 0:00:00]} Rb1 {[%emt 0:01:19]} 53. d5+ {[%emt 0:00:00]} Kf6 {[%emt 0:00:03]} 54. Rd7 {[%emt 0:00:00]} Rb6 {[%emt 0:00:31]} 55. Rc7 {[%emt 0:00:00]} Ke5 {[%emt 0:00:18]} 56. Re7+ {[%emt 0:00:00]} Kf6 {[%emt 0:00:58]} 57. Re6+ {[%emt 0:00:00]} Kf7 {[%emt 0:00:02]} 58. Kd4 {[%emt 0:00:00]} Ra6 {[%emt 0:00:11]} 59. Kd3 {[%emt 0:00:00]} Rb6 {[%emt 0:01:44]} 60. Kc3 {[%emt 0:00:00]} Kf8 {[%emt 0:00:08]} 61. c5 {[%emt 0:00:00]} Rb5 {[%emt 0:00:23]} 62. cxd6 {[%emt 0:00:00]} Rxd5 {[%emt 0:00:04]} 63. Kc4 {[%emt 0:00:00]} Rd1 {[%emt 0:01:25]} 64. Kc5 {[%emt 0:00:00]} Kf7 {[%emt 0:00:23]} 65. Re5 {[%emt 0:00:00]} Rc1+ {[%emt 0:00:27]} 66. Kb6 {[%emt 0:00:00]} Kf6 {[%emt 0:00:49]} 67. Re8 {[%emt 0:00:00]} Rd1 {[%emt 0:00:29]} 68. Kc7 {[%emt 0:00:00]} Rc1+ {[%emt 0:00:22]} 69. Kd8 {[%emt 0:00:00]} Rd1 {[%emt 0:00:52]} 70. d7 {[%emt 0:00:00]} Rc1 {[%emt 0:00:14]} 71. Re2 {[%emt 0:00:00]} Kf7 {[%emt 0:00:11]} 72. Rf2+ {[%emt 0:00:00]} Kg7 {[%emt 0:00:22]} 73. Rf4 {[%emt 0:00:00]} Rc2 {[%emt 0:01:09]} 74. Ke7 {[%emt 0:00:00]} Re2+ {[%emt 0:00:31]} 75. Kd6 {[%emt 0:00:00]} Rd2+ {[%emt 0:00:06]} 76. Ke6 {[%emt 0:00:00]} Kg8 {[%emt 0:00:28]} 77. Rf5 {[%emt 0:00:00]} Rxd7 {[%emt 0:00:58]} 78. Kxd7 {[%emt 0:00:00]} Kg7 {[%emt 0:00:01]} 79. Ke6 {[%emt 0:00:00]} Kg6 {[%emt 0:00:04]} 80. Re5 {[%emt 0:00:00]} Kg7 {[%emt 0:00:04]} 81. Rg5+ {[%emt 0:00:00]} Kh6 {[%emt 0:00:04]} 82. Kf6 {[%emt 0:00:00]} Kh7 {[%emt 0:00:03]} 83. Rh5+ {[%emt 0:00:00]} Kg8 {[%emt 0:00:04]} 84. Rh1 {[%emt 0:00:00]} Kf8 {[%emt 0:00:02]} 1-0

[Event "Slovakia Open Piestany-A 2022"]
[Site "Piestany"]
[Date "2022.07.13"]
[Round "3.29"]
[White "Nadzamova, Viktoria"]
[Black "Chlpik, Martin"]
[Result "1-0"]
[ECO "B28"]
[WhiteElo "2133"]
[BlackElo "2236"]
[Annotator "ChessBase"]
[PlyCount "63"]
[EventDate "2022.07.12"]
[EventType "swiss"]
[EventCountry "SVK"]
[SourceTitle "playchess.com"]
[Source "ChessBase"]
[SourceQuality "1"]
[TimeControl "40/5400+30:1800+30"]

1. e4 {[%emt 0:04:25]} c5 {[%emt 0:01:25]} 2. Nf3 {[%emt 0:00:08]} a6 {[%emt 0:00:04]} 3. d4 {[%emt 0:00:57]} cxd4 {[%emt 0:00:07]} 4. Nxd4 {[%emt 0:00:02]} Nf6 {[%emt 0:00:18]} 5. Nc3 {[%emt 0:00:12]} e5 {[%emt 0:00:09]} 6. Nb3 {[%emt 0:00:12]} Bb4 {[%emt 0:03:37]} 7. Bd3 {[%emt 0:00:13]} d5 {[%emt 0:00:49]} 8. exd5 {[%emt 0:08:40]} Nxd5 {[%emt 0:01:13]} 9. O-O {[%emt 0:04:53]} Nxc3 {[%emt 0:01:05]} 10. bxc3 {[%emt 0:00:07]} Bxc3 {[%emt 0:00:05]} 11. Ba3 {[%emt 0:00:09]} b5 {[%emt 0:00:56]} 12. Qf3 {[%emt 0:01:52]} Ra7 {[%emt 0:06:34]} 13. Bc5 {[%emt 0:25:30]} Rd7 {[%emt 0:00:08]} 14. Rad1 {[%emt 0:03:18]} Bb7 {[%emt 0:10:07]} 15. Qg3 {[%emt 0:02:09]} Rg8 {[%emt 0:29:14]} 16. Be2 {[%emt 0:10:54]} b4 {[%emt 0:00:49]} 17. Bg4 {[%emt 0:03:13]} f5 {[%emt 0:05:46]} 18. Bxf5 {[%emt 0:01:12]} Rxd1 {[%emt 0:00:14]} 19. Bg6+ {[%emt 0:00:05]} hxg6 {[%emt 0:00:05]} 20. Qxg6+ {[%emt 0:00:08]} Kd7 {[%emt 0:00:03]} 21. Rxd1+ {[%emt 0:00:11]} Bd4 {[%emt 0:00:14]} 22. Nxd4 {[%emt 0:02:03]} Bd5 {[%emt 0:12:20]} 23. Ne6 {[%emt 0:03:49]} Qf6 {[%emt 0:02:40]} 24. Rxd5+ {[%emt 0:00:17]} Kc8 {[%emt 0:00:07]} 25. Qg4 {[%emt 0:01:54]} Nc6 {[%emt 0:01:01]} 26. Nf8+ {[%emt 0:01:17]} Kb7 {[%emt 0:00:17]} 27. Qd7+ {[%emt 0:00:08]} Kb8 {[%emt 0:01:37]} 28. Qe8+ {[%emt 0:00:25]} Nd8 {[%emt 0:00:19]} 29. Rxd8+ {[%emt 0:00:16]} Qxd8 {[%emt 0:00:06]} 30. Qxd8+ {[%emt 0:00:21]} Kb7 {[%emt 0:00:05]} 31. Qb6+ {[%emt 0:00:20]} Kc8 {[%emt 0:00:05]} 32. Bd6 {[%emt 0:00:02]} 1-0

[Event "Slovakia Open Piestany-A 2022"]
[Site "Piestany"]
[Date "2022.07.13"]
[Round "3.30"]
[White "Sosovickova, Jana"]
[Black "Skreko, Igor"]
[Result "1-0"]
[ECO "B90"]
[WhiteElo "1958"]
[BlackElo "2193"]
[Annotator "ChessBase"]
[PlyCount "79"]
[EventDate "2022.07.12"]
[EventType "swiss"]
[EventCountry "SVK"]
[SourceTitle "playchess.com"]
[Source "ChessBase"]
[SourceQuality "1"]
[TimeControl "40/5400+30:1800+30"]

1. e4 {[%emt 0:00:05]} c5 {[%emt 0:00:05]} 2. Nf3 {[%emt 0:00:03]} d6 {[%emt 0:00:06]} 3. d4 {[%emt 0:00:05]} cxd4 {[%emt 0:00:03]} 4. Nxd4 {[%emt 0:00:04]} Nf6 {[%emt 0:00:08]} 5. Nc3 {[%emt 0:00:07]} a6 {[%emt 0:00:02]} 6. Bd3 {[%emt 0:00:26]} e5 {[%emt 0:01:47]} 7. Nde2 {[%emt 0:00:10]} Be6 {[%emt 0:01:18]} 8. O-O {[%emt 0:02:44]} Be7 {[%emt 0:00:35]} 9. Ng3 {[%emt 0:00:17]} Nbd7 {[%emt 0:00:56]} 10. Kh1 {[%emt 0:01:54]} O-O {[%emt 0:02:23]} 11. Nd5 {[%emt 0:00:49]} Bxd5 {[%emt 0:06:33]} 12. exd5 {[%emt 0:00:05]} g6 {[%emt 0:07:46]} 13. c4 {[%emt 0:00:21]} Re8 {[%emt 0:02:13]} 14. f4 {[%emt 0:06:30]} Bf8 {[%emt 0:04:03]} 15. fxe5 {[%emt 0:06:21]} dxe5 {[%emt 0:01:00]} 16. Bg5 {[%emt 0:08:24]} h6 {[%emt 0:02:26]} 17. Bxf6 {[%emt 0:01:22]} Nxf6 {[%emt 0:00:07]} 18. Qf3 {[%emt 0:00:15]} Bg7 {[%emt 0:13:23]} 19. Ne4 {[%emt 0:01:16]} Nxe4 {[%emt 0:00:31]} 20. Qxf7+ {[%emt 0:00:22]} Kh7 {[%emt 0:00:06]} 21. Bxe4 {[%emt 0:04:29]} Qg5 {[%emt 0:00:44]} 22. d6 {[%emt 0:13:13]} Rf8 {[%emt 0:08:01]} 23. Qd5 {[%emt 0:09:32]} Rad8 {[%emt 0:05:56]} 24. c5 {[%emt 0:01:10]} Qg4 {[%emt 0:02:44]} 25. Qd3 {[%emt 0:03:56]} h5 {[%emt 0:10:19]} 26. Rf3 {[%emt 0:10:43]} Qe6 {[%emt 0:06:46]} 27. Bd5 {[%emt 0:08:57]} Qc8 {[%emt 0:02:59]} 28. Rg3 {[%emt 0:06:49]} Rf6 {[%emt 0:01:23]} 29. b4 {[%emt 0:00:48]} Rdf8 {[%emt 0:03:25]} 30. Be4 {[%emt 0:03:42]} Qe6 {[%emt 0:01:27]} 31. Rf3 {[%emt 0:01:51]} Rxf3 {[%emt 0:03:09]} 32. gxf3 {[%emt 0:00:06]} Kh6 {[%emt 0:01:30]} 33. Rg1 {[%emt 0:02:16]} g5 {[%emt 0:00:32]} 34. Bxb7 {[%emt 0:00:55]} Qxa2 {[%emt 0:08:05]} 35. d7 {[%emt 0:01:32]} Bf6 {[%emt 0:02:07]} 36. Qd6 {[%emt 0:02:39]} Kg7 {[%emt 0:00:35]} 37. Be4 {[%emt 0:00:36]} Qc4 {[%emt 0:03:04]} 38. Rxg5+ {[%emt 0:00:29]} Kh6 {[%emt 0:00:27]} 39. Rg6+ {[%emt 0:00:23]} Kh7 {[%emt 0:00:29]} 40. Rxf6+ {[%emt 0:00:10]} 1-0

[Event "Slovakia Open Piestany-A 2022"]
[Site "Piestany"]
[Date "2022.07.13"]
[Round "3.31"]
[White "Mizicka, Matus"]
[Black "Michelle Catherina, P."]
[Result "1-0"]
[ECO "C33"]
[WhiteElo "1915"]
[BlackElo "2141"]
[Annotator "ChessBase"]
[PlyCount "183"]
[EventDate "2022.07.12"]
[EventType "swiss"]
[EventCountry "SVK"]
[SourceTitle "playchess.com"]
[Source "ChessBase"]
[SourceQuality "1"]
[TimeControl "40/5400+30:1800+30"]

1. e4 {[%emt 0:00:04]} e5 {[%emt 0:02:26]} 2. f4 {[%emt 0:00:10]} exf4 {[%emt 0:00:08]} 3. Bc4 {[%emt 0:00:07]} Nf6 {[%emt 0:03:06]} 4. Nc3 {[%emt 0:02:08]} c6 {[%emt 0:06:17]} 5. Qf3 {[%emt 0:02:49]} d5 {[%emt 0:12:52]} 6. exd5 {[%emt 0:01:38]} Bd6 {[%emt 0:01:53]} 7. Qe2+ {[%emt 0:17:36]} Be7 {[%emt 0:04:59]} 8. Nf3 {[%emt 0:02:21]} O-O {[%emt 0:04:24]} 9. O-O {[%emt 0:01:23]} b5 {[%emt 0:06:17]} 10. Bb3 {[%emt 0:02:30]} b4 {[%emt 0:01:06]} 11. Ne4 {[%emt 0:00:39]} Nxd5 {[%emt 0:04:57]} 12. d4 {[%emt 0:01:38]} a5 {[%emt 0:05:00]} 13. Ne5 {[%emt 0:00:58]} Qb6 {[%emt 0:02:53]} 14. Rd1 {[%emt 0:03:08]} Nd7 {[%emt 0:04:01]} 15. Nxd7 {[%emt 0:03:40]} Bxd7 {[%emt 0:00:07]} 16. c4 {[%emt 0:00:57]} bxc3 {[%emt 0:03:11]} 17. bxc3 {[%emt 0:00:07]} a4 {[%emt 0:01:57]} 18. Bc4 {[%emt 0:04:38]} Be6 {[%emt 0:02:30]} 19. Kh1 {[%emt 0:01:39]} Rfe8 {[%emt 0:02:12]} 20. Qf3 {[%emt 0:03:38]} f5 {[%emt 0:02:57]} 21. Nf2 {[%emt 0:01:30]} g5 {[%emt 0:04:05]} 22. Re1 {[%emt 0:08:27]} Bf6 {[%emt 0:02:43]} 23. Qd3 {[%emt 0:02:14]} Kg7 {[%emt 0:03:09]} 24. Bd2 {[%emt 0:01:00]} Bd7 {[%emt 0:02:07]} 25. Rab1 {[%emt 0:07:24]} Qc7 {[%emt 0:00:43]} 26. Qh3 {[%emt 0:01:18]} Rab8 {[%emt 0:03:18]} 27. Bd3 {[%emt 0:01:15]} Rxb1 {[%emt 0:04:31]} 28. Rxb1 {[%emt 0:00:08]} Ne3 {[%emt 0:04:07]} 29. Bxe3 {[%emt 0:05:52]} Rxe3 {[%emt 0:02:31]} 30. Qh5 {[%emt 0:00:41]} Qc8 {[%emt 0:02:55]} 31. h3 {[%emt 0:11:14]} Be8 {[%emt 0:00:42]} 32. Qd1 {[%emt 0:00:10]} a3 {[%emt 0:01:07]} 33. Qb3 {[%emt 0:02:00]} Be7 {[%emt 0:00:47]} 34. Qb6 {[%emt 0:01:32]} f3 {[%emt 0:00:38]} 35. d5 {[%emt 0:06:26]} fxg2+ {[%emt 0:00:09]} 36. Kxg2 {[%emt 0:00:10]} Re5 {[%emt 0:00:59]} 37. Qd4 {[%emt 0:00:59]} Bf6 {[%emt 0:00:28]} 38. d6 {[%emt 0:00:49]} c5 {[%emt 0:00:27]} 39. d7 {[%emt 0:03:14]} Qc6+ {[%emt 0:00:31]} 40. Be4 {[%emt 0:00:52]} Qxd7 {[%emt 0:00:38]} 41. Qxd7+ {[%emt 0:03:45]} Bxd7 {[%emt 0:01:52]} 42. Bf3 {[%emt 0:00:03]} c4 {[%emt 0:06:40]} 43. Rb7 {[%emt 0:00:51]} Re7 {[%emt 0:00:13]} 44. Bd5 {[%emt 0:03:19]} Bxc3 {[%emt 0:01:47]} 45. Kf1 {[%emt 0:00:30]} f4 {[%emt 0:05:38]} 46. Bc6 {[%emt 0:03:09]} Bxc6 {[%emt 0:10:35]} 47. Rxe7+ {[%emt 0:00:09]} Kg8 {[%emt 0:01:13]} 48. Rc7 {[%emt 0:00:23]} Bf3 {[%emt 0:02:06]} 49. Rxc4 {[%emt 0:00:48]} Bg7 {[%emt 0:01:26]} 50. Ra4 {[%emt 0:00:43]} Bf8 {[%emt 0:01:34]} 51. Ng4 {[%emt 0:01:27]} Bxg4 {[%emt 0:01:25]} 52. hxg4 {[%emt 0:00:06]} Kf7 {[%emt 0:00:43]} 53. Ra7+ {[%emt 0:00:41]} Be7 {[%emt 0:01:02]} 54. Ke2 {[%emt 0:00:25]} Kf6 {[%emt 0:00:45]} 55. Ra6+ {[%emt 0:00:40]} Ke5 {[%emt 0:00:40]} 56. Rh6 {[%emt 0:00:32]} Bc5 {[%emt 0:00:25]} 57. Kf3 {[%emt 0:00:58]} Kd4 {[%emt 0:00:34]} 58. Rxh7 {[%emt 0:01:23]} Ke5 {[%emt 0:00:23]} 59. Rg7 {[%emt 0:00:23]} Kf6 {[%emt 0:00:10]} 60. Rc7 {[%emt 0:00:06]} Bd6 {[%emt 0:00:10]} 61. Rc6 {[%emt 0:00:17]} Ke5 {[%emt 0:00:09]} 62. Ra6 {[%emt 0:01:46]} Kd5 {[%emt 0:00:38]} 63. Ra7 {[%emt 0:01:05]} Ke6 {[%emt 0:01:30]} 64. Rg7 {[%emt 0:00:27]} Be7 {[%emt 0:00:09]} 65. Ke4 {[%emt 0:00:31]} Kf6 {[%emt 0:00:41]} 66. Rh7 {[%emt 0:00:29]} Ke6 {[%emt 0:00:28]} 67. Rh6+ {[%emt 0:01:24]} Bf6 {[%emt 0:00:35]} 68. Rg6 {[%emt 0:00:07]} Kf7 {[%emt 0:00:30]} 69. Kf5 {[%emt 0:00:07]} Bd8 {[%emt 0:00:33]} 70. Ra6 {[%emt 0:01:30]} Be7 {[%emt 0:00:04]} 71. Rb6 {[%emt 0:03:00]} Bd8 {[%emt 0:00:57]} 72. Rb3 {[%emt 0:00:19]} Be7 {[%emt 0:00:09]} 73. Rb7 {[%emt 0:00:05]} f3 {[%emt 0:00:53]} 74. Rb3 {[%emt 0:00:17]} f2 {[%emt 0:00:20]} 75. Rf3 {[%emt 0:00:05]} Bc5 {[%emt 0:00:05]} 76. Kxg5+ {[%emt 0:00:09]} Kg7 {[%emt 0:00:04]} 77. Kh4 {[%emt 0:01:46]} Kg6 {[%emt 0:00:44]} 78. Rf5 {[%emt 0:00:15]} Be3 {[%emt 0:01:02]} 79. Kg3 {[%emt 0:00:26]} Bd4 {[%emt 0:00:35]} 80. Kg2 {[%emt 0:00:27]} Bb6 {[%emt 0:00:26]} 81. Rb5 {[%emt 0:00:38]} Be3 {[%emt 0:00:41]} 82. Ra5 {[%emt 0:00:21]} Bd4 {[%emt 0:00:11]} 83. Rxa3 {[%emt 0:00:23]} Kg5 {[%emt 0:00:04]} 84. Ra8 {[%emt 0:00:44]} Be3 {[%emt 0:00:17]} 85. Rg8+ {[%emt 0:00:23]} Kf6 {[%emt 0:00:04]} 86. a4 {[%emt 0:00:14]} Bb6 {[%emt 0:00:06]} 87. Rf8+ {[%emt 0:00:48]} Kg5 {[%emt 0:00:06]} 88. Rxf2 {[%emt 0:00:11]} Kxg4 {[%emt 0:00:17]} 89. Rb2 {[%emt 0:00:28]} Be3 {[%emt 0:00:36]} 90. a5 {[%emt 0:00:12]} Kf5 {[%emt 0:00:05]} 91. a6 {[%emt 0:00:11]} Bd4 {[%emt 0:00:05]} 92. Rb7 {[%emt 0:00:10]} 1-0

[Event "Slovakia Open Piestany-A 2022"]
[Site "Piestany"]
[Date "2022.07.13"]
[Round "3.32"]
[White "Walter, Ema"]
[Black "Paluska, Karol"]
[Result "1-0"]
[ECO "B06"]
[WhiteElo "2000"]
[BlackElo "1957"]
[Annotator "ChessBase"]
[PlyCount "69"]
[EventDate "2022.07.12"]
[EventType "swiss"]
[EventCountry "SVK"]
[SourceTitle "playchess.com"]
[Source "ChessBase"]
[SourceQuality "1"]
[TimeControl "40/5400+30:1800+30"]

1. e4 {[%emt 0:00:03]} g6 {[%emt 0:01:55]} 2. d4 {[%emt 0:00:06]} Bg7 {[%emt 0:00:04]} 3. Nf3 {[%emt 0:00:05]} d6 {[%emt 0:00:13]} 4. h3 {[%emt 0:01:41]} c5 {[%emt 0:03:23]} 5. c3 {[%emt 0:08:19]} Qc7 {[%emt 0:13:47]} 6. Be3 {[%emt 0:05:26]} Nf6 {[%emt 0:08:05]} 7. Bd3 {[%emt 0:03:51]} a6 {[%emt 0:05:33]} 8. Nbd2 {[%emt 0:07:22]} b5 {[%emt 0:00:35]} 9. a4 {[%emt 0:02:51]} c4 {[%emt 0:00:14]} 10. Bc2 {[%emt 0:00:32]} Bb7 {[%emt 0:00:06]} 11. axb5 {[%emt 0:13:14]} axb5 {[%emt 0:00:09]} 12. Rxa8 {[%emt 0:00:07]} Bxa8 {[%emt 0:00:05]} 13. Qa1 {[%emt 0:00:07]} Bb7 {[%emt 0:03:53]} 14. d5 {[%emt 0:00:53]} e5 {[%emt 0:03:16]} 15. dxe6 {[%emt 0:01:39]} fxe6 {[%emt 0:00:21]} 16. Nd4 {[%emt 0:01:26]} Qd7 {[%emt 0:01:07]} 17. Nxb5 {[%emt 0:06:56]} Nxe4 {[%emt 0:04:43]} 18. Nxc4 {[%emt 0:09:01]} O-O {[%emt 0:02:43]} 19. Nd4 {[%emt 0:08:42]} e5 {[%emt 0:27:43]} 20. Nf3 {[%emt 0:13:13]} Nc5 {[%emt 0:00:40]} 21. Ncd2 {[%emt 0:03:47]} Qb5 {[%emt 0:04:41]} 22. Qa2+ {[%emt 0:00:09]} Kh8 {[%emt 0:00:15]} 23. c4 {[%emt 0:03:07]} Qd7 {[%emt 0:02:37]} 24. b4 {[%emt 0:01:20]} Ne6 {[%emt 0:00:15]} 25. O-O {[%emt 0:02:11]} Nc6 {[%emt 0:02:31]} 26. Qb1 {[%emt 0:00:52]} Ncd4 {[%emt 0:01:19]} 27. Bxd4 {[%emt 0:00:31]} Bxf3 {[%emt 0:01:57]} 28. Nxf3 {[%emt 0:01:43]} Rxf3 {[%emt 0:02:19]} 29. Be4 {[%emt 0:00:04]} Nxd4 {[%emt 0:04:57]} 30. Bxf3 {[%emt 0:00:29]} Nxf3+ {[%emt 0:00:07]} 31. gxf3 {[%emt 0:00:04]} Qxh3 {[%emt 0:00:11]} 32. Qe4 {[%emt 0:00:09]} Bf6 {[%emt 0:00:18]} 33. Ra1 {[%emt 0:01:16]} Bg5 {[%emt 0:00:33]} 34. Qb7 {[%emt 0:01:03]} Qh4 {[%emt 0:00:35]} 35. Qf7 {[%emt 0:02:05]} 1-0

[Event "Slovakia Open Piestany-A 2022"]
[Site "Piestany"]
[Date "2022.07.13"]
[Round "4.1"]
[White "Moroni, Luca Jr"]
[Black "Kozak, Antoni"]
[Result "1/2-1/2"]
[ECO "B13"]
[WhiteElo "2584"]
[BlackElo "2475"]
[Annotator "ChessBase"]
[PlyCount "155"]
[EventDate "2022.07.12"]
[EventType "swiss"]
[EventCountry "SVK"]
[SourceTitle "playchess.com"]
[Source "ChessBase"]
[SourceQuality "1"]
[TimeControl "40/5400+30:1800+30"]

1. d4 {[%emt 0:00:02]} d5 {[%emt 0:07:40]} 2. Bf4 {[%emt 0:02:43]} c5 {[%emt 0:01:31]} 3. e3 {[%emt 0:00:07]} cxd4 {[%emt 0:00:04]} 4. exd4 {[%emt 0:00:05]} Nc6 {[%emt 0:00:02]} 5. c3 {[%emt 0:00:07]} f6 {[%emt 0:00:06]} 6. Nf3 {[%emt 0:00:11]} g5 {[%emt 0:00:05]} 7. Be3 {[%emt 0:00:04]} Bf5 {[%emt 0:06:31]} 8. c4 {[%emt 0:00:11]} e6 {[%emt 0:01:28]} 9. cxd5 {[%emt 0:00:18]} exd5 {[%emt 0:02:47]} 10. Nc3 {[%emt 0:02:28]} Bb4 {[%emt 0:05:47]} 11. Qb3 {[%emt 0:05:28]} Nge7 {[%emt 0:03:02]} 12. Bb5 {[%emt 0:00:47]} Ba5 {[%emt 0:03:49]} 13. O-O {[%emt 0:06:26]} Bc7 {[%emt 0:09:41]} 14. Rfe1 {[%emt 0:03:34]} Kf8 {[%emt 0:02:55]} 15. Rac1 {[%emt 0:11:08]} Qd6 {[%emt 0:11:00]} 16. Bf1 {[%emt 0:06:29]} a6 {[%emt 0:01:38]} 17. g3 {[%emt 0:00:06]} Kg7 {[%emt 0:02:46]} 18. Na4 {[%emt 0:06:00]} Ba5 {[%emt 0:02:43]} 19. Red1 {[%emt 0:06:34]} Qb4 {[%emt 0:01:16]} 20. Qxb4 {[%emt 0:03:04]} Bxb4 {[%emt 0:01:13]} 21. Nc5 {[%emt 0:03:54]} b6 {[%emt 0:05:27]} 22. Na4 {[%emt 0:14:40]} Rhb8 {[%emt 0:00:58]} 23. Bg2 {[%emt 0:01:06]} Ra7 {[%emt 0:01:36]} 24. a3 {[%emt 0:01:18]} Bd6 {[%emt 0:00:05]} 25. Nd2 {[%emt 0:00:05]} Be6 {[%emt 0:07:04]} 26. b4 {[%emt 0:02:24]} Rc7 {[%emt 0:03:11]} 27. Nb1 {[%emt 0:00:58]} a5 {[%emt 0:03:34]} 28. b5 {[%emt 0:01:33]} Na7 {[%emt 0:00:51]} 29. Rxc7 {[%emt 0:02:07]} Bxc7 {[%emt 0:00:03]} 30. Nbc3 {[%emt 0:00:16]} Bd6 {[%emt 0:01:38]} 31. Bc1 {[%emt 0:00:02]} Bd7 {[%emt 0:04:18]} 32. Bf1 {[%emt 0:00:37]} Bc7 {[%emt 0:01:00]} 33. Re1 {[%emt 0:02:07]} Kf7 {[%emt 0:01:11]} 34. Be2 {[%emt 0:01:37]} Bd6 {[%emt 0:02:07]} 35. Kg2 {[%emt 0:03:16]} h6 {[%emt 0:00:47]} 36. Rh1 {[%emt 0:00:44]} Kg7 {[%emt 0:02:15]} 37. h4 {[%emt 0:02:31]} Be8 {[%emt 0:01:28]} 38. hxg5 {[%emt 0:01:15]} hxg5 {[%emt 0:00:03]} 39. f4 {[%emt 0:00:58]} gxf4 {[%emt 0:00:18]} 40. Bxf4 {[%emt 0:00:06]} Bxf4 {[%emt 0:05:02]} 41. gxf4 {[%emt 0:30:04]} Nac8 {[%emt 0:10:49]} 42. Bd3 {[%emt 0:00:00]} f5 {[%emt 0:06:48]} 43. Re1 {[%emt 0:00:00]} Kf6 {[%emt 0:00:54]} 44. Re5 {[%emt 0:00:00]} Bf7 {[%emt 0:00:17]} 45. Kf3 {[%emt 0:00:00]} Nd6 {[%emt 0:01:57]} 46. Ke3 {[%emt 0:00:00]} Be6 {[%emt 0:01:45]} 47. Kd2 {[%emt 0:00:00]} Nf7 {[%emt 0:03:05]} 48. Re1 {[%emt 0:00:00]} Ng6 {[%emt 0:00:39]} 49. Rf1 {[%emt 0:01:22]} Nd6 {[%emt 0:00:15]} 50. Nd1 {[%emt 0:00:15]} Ne7 {[%emt 0:03:46]} 51. Ne3 {[%emt 0:01:08]} Bd7 {[%emt 0:00:28]} 52. Nc3 {[%emt 0:00:37]} Be6 {[%emt 0:00:04]} 53. Rh1 {[%emt 0:00:16]} Kg7 {[%emt 0:00:48]} 54. Rg1+ {[%emt 0:05:04]} Kf6 {[%emt 0:00:18]} 55. Rc1 {[%emt 0:00:03]} Rb7 {[%emt 0:01:01]} 56. Bb1 {[%emt 0:03:17]} Rd7 {[%emt 0:00:59]} 57. Rh1 {[%emt 0:01:19]} Kg7 {[%emt 0:01:21]} 58. Ba2 {[%emt 0:01:23]} Ne8 {[%emt 0:02:38]} 59. Rh5 {[%emt 0:01:43]} Nf6 {[%emt 0:00:29]} 60. Rg5+ {[%emt 0:00:56]} Kf7 {[%emt 0:00:04]} 61. Bb1 {[%emt 0:02:25]} Ne4+ {[%emt 0:02:08]} 62. Bxe4 {[%emt 0:00:02]} dxe4 {[%emt 0:00:04]} 63. d5 {[%emt 0:01:46]} Kf6 {[%emt 0:00:53]} 64. Kc2 {[%emt 0:00:28]} Bxd5 {[%emt 0:01:17]} 65. Ncxd5+ {[%emt 0:00:49]} Rxd5 {[%emt 0:00:03]} 66. Nxd5+ {[%emt 0:00:07]} Nxd5 {[%emt 0:00:02]} 67. Rg8 {[%emt 0:02:35]} Nxf4 {[%emt 0:00:06]} 68. Kc3 {[%emt 0:00:37]} Ke5 {[%emt 0:00:57]} 69. Re8+ {[%emt 0:00:32]} Ne6 {[%emt 0:00:17]} 70. Rb8 {[%emt 0:00:22]} Nc7 {[%emt 0:00:10]} 71. Kc4 {[%emt 0:00:29]} f4 {[%emt 0:01:23]} 72. Rxb6 {[%emt 0:00:44]} f3 {[%emt 0:00:04]} 73. Rb8 {[%emt 0:00:25]} Ne6 {[%emt 0:01:04]} 74. Rh8 {[%emt 0:00:08]} e3 {[%emt 0:00:43]} 75. b6 {[%emt 0:01:03]} f2 {[%emt 0:00:27]} 76. Rh1 {[%emt 0:00:05]} e2 {[%emt 0:00:38]} 77. b7 {[%emt 0:00:32]} f1=Q {[%emt 0:00:37]} 78. b8=Q+ {[%emt 0:00:30]} 1/2-1/2